[Event "8th Montevideo Open 2025"]
[Site "Montevideo"]
[Date "2025.02.06"]
[Round "7.24"]
[White "Lopez Betancourt, Bryan"]
[Black "Volpe, Agustin"]
[Result "*"]
[Annotator "NA RC"]
[ECO "C56"]
[WhiteElo "1897"]
[BlackElo "1873"]
[PlyCount "30"]
[EventDate "2025.02.01"]
[EventType "swiss"]
[EventCountry "URU"]
[SourceTitle "playchess.com"]
[Source "ChessBase"]
[SourceQuality "1"]
[TimeControl "5400+30"]

1. e4 {[%emt 0:00:01]} e5 {[%emt 0:01:07]} 2. Nf3 {[%emt 0:00:30]} Nc6 {[%emt 0:00:00]} 3. d4 {[%emt 0:02:40]} exd4 {[%emt 0:00:05]} 4. Bc4 {[%emt 0:00:30]} Nf6 {[%emt 0:00:20]} 5. e5 {[%emt 0:00:58]} d5 {[%emt 0:00:08]} 6. Bb5 {[%emt 0:00:08]} Ne4 {[%emt 0:00:10]} 7. Nxd4 {[%emt 0:00:18]} Bc5 {[%emt 0:00:45]} 8. Be3 {[%emt 0:01:47]} O-O {[%emt 0:01:27]} 9. Nxc6 {[%emt 0:03:38]} bxc6 {[%emt 0:00:30]} 10. Bxc5 {[%emt 0:00:30]} Nxc5 {[%emt 0:00:30]} 11. Bxc6 {[%emt 0:00:30]} Rb8 {[%emt 0:00:30]} 12. Qxd5 {[%emt 0:00:30]} Qe7 {[%emt 0:00:30]} 13. O-O {[%emt 0:00:30]} Rxb2 {[%emt 0:00:30]} 14. c4 {[%emt 0:00:30]} Rd8 {[%emt 0:00:30]} 15. Qf3 {[%emt 0:00:30]} Qxe5 {[%emt 0:00:30]} *